bitfinex-derivatives/quotes_ETHF0:USTF0_20241228
["timestamp","ask_amount","ask_price","bid_price","bid_amount"]
[1735411014877,0.2953,3392.5,3392.0,3.2078]
[1735411015084,0.29532,3392.1,3392.0,3.50312]
[1735411015982,3.50312,3392.1,3392.0,0.29532]
[1735411016182,6.9731387,3392.1,3392.0,0.29532]
[1735411016885,0.29535,3391.9,3391.8,0.29534]
[1735411017278,6.6778187,3392.1,3391.6,4.62375676]
[1735411017577,3.2078,3391.7,3391.6,4.91911676]
[1735411017780,3.2078,3391.7,3391.6,0.29536]
[1735411017781,3.50316,3391.7,3391.6,0.29536]
[1735411018179,3.2078,3391.7,3391.6,0.29536]
[1735411019282,6.67531285,3391.7,3391.6,0.29536]
[1735411020585,6.97067285,3391.7,3391.6,0.29536]
[1735411020981,7.39657285,3391.7,3391.6,0.29536]
[1735411022385,3.92906,3391.7,3391.6,0.29536]
[1735411025984,6.23789262,3391.7,3391.6,0.29536]
[1735411027284,6.23789262,3391.7,3391.1,4.34542]
[1735411027498,0.29539,3391.5,3391.4,0.29537]
[1735411028082,0.2954,3391.3,3391.2,0.29539]
[1735411028692,0.2954,3391.2,3391.1,3.50321]
[1735411028886,0.7358,3391.2,3391.1,3.2078]
[1735411030593,3.6482,3391.2,3391.0,0.29542]
[1735411030793,0.29541,3391.1,3391.0,0.29542]
[1735411032082,3.6482,3391.2,3390.6,0.73864]
[1735411032289,0.29543,3391.0,3390.9,0.29542]
[1735411033789,3.6482,3391.2,3390.6,0.73864]
[1735411033984,3.6482,3391.2,3391.1,0.29541]
[1735411034185,3.2078,3391.2,3391.1,0.29541]
[1735411040496,0.4444,3391.3,3391.2,0.2954]
[1735411040897,0.73979,3391.3,3391.2,0.2954]
[1735411042197,0.4444,3391.3,3391.2,0.2954]
[1735411043292,0.73979,3391.3,3391.2,0.2954]
[1735411045602,0.4444,3391.3,3391.2,0.2954]
[1735411047597,2.30883262,3391.5,3391.4,0.29538]
[1735411047799,2.64139161,3391.9,3391.4,0.73847]
[1735411047994,1.71190979,3391.9,3391.8,0.29535]
[1735411048199,1.71190979,3391.9,3391.8,1.46335]
[1735411049704,0.8811,3392.6,3392.5,0.29529]
[1735411050202,0.8811,3392.6,3392.1,3.2078]
[1735411050396,0.8811,3392.6,3392.0,0.73833]
[1735411050397,4.38419,3392.6,3391.9,0.73835]
[1735411050601,4.38419,3392.6,3392.5,0.29529]
[1735411050602,3.2078,3392.6,3392.5,0.29529]
[1735411050903,3.2078,3393.0,3392.9,0.29525]
[1735411053497,3.2078,3393.0,3392.9,0.29525]
[1735411056204,4.0953,3393.4,3392.7,0.4257]
[1735411056398,4.0953,3393.4,3393.3,0.29522]
[1735411057706,0.8875,3393.4,3393.3,0.29522]
[1735411065012,0.8875,3393.4,3393.0,3.2078]
[1735411065206,0.29524,3393.1,3393.0,3.50304]
[1735411066109,0.8875,3393.4,3392.9,0.29525]
[1735411066110,0.29525,3393.0,3392.9,0.29525]
[1735411066608,0.29524,3393.1,3393.0,0.29524]
[1735411067409,0.29524,3393.1,3392.6,3.2078]
[1735411067410,4.0953,3393.4,3393.3,0.29522]
[1735411070719,0.8875,3393.4,3393.3,0.29522]
[1735411071417,0.29523,3393.2,3393.1,0.29523]
[1735411072418,0.29523,3393.3,3393.2,0.29522]
[1735411077626,3.50303,3393.3,3393.2,0.29522]
[1735411077817,3.2078,3393.3,3393.2,0.29522]
[1735411079523,3.6408,3393.3,3393.2,0.29522]
[1735411080635,0.433,3393.3,3393.2,0.29522]
[1735411082423,3.2078,3393.7,3393.3,0.29522]
[1735411082623,3.2078,3393.7,3393.6,0.29519]
[1735411083837,0.4477,3393.9,3393.3,4.72997897]
[1735411084138,0.4477,3393.9,3393.8,0.29518]
[1735411085436,3.2078,3394.1,3393.3,6.20609897]
[1735411085634,3.2078,3394.1,3394.0,0.29516]
[1735411086535,3.6545,3394.1,3394.0,0.29516]
[1735411088230,7.81386628,3395.0,3394.9,0.29508]
[1735411088433,8.68686628,3395.0,3394.9,0.29508]
[1735411088837,7.81386628,3395.0,3394.9,0.29508]
[1735411089940,3.2078,3395.0,3394.9,0.29508]
[1735411096047,4.80583,3395.5,3395.3,0.29504]
[1735411096340,4.80583,3395.5,3395.4,0.29504]
[1735411097042,4.5108,3395.5,3395.4,0.29504]
[1735411097951,4.80583,3395.5,3395.0,0.73767]
[1735411098651,1.303,3395.5,3395.4,0.29504]
[1735411100853,1.59803,3395.5,3395.4,0.29504]
[1735411102646,0.29506,3395.3,3395.2,0.29505]
[1735411102850,1.303,3395.5,3395.0,0.29506]
[1735411102851,0.29507,3395.1,3395.0,0.29506]
[1735411103051,3.50286,3395.2,3395.1,0.29506]
[1735411105254,3.2078,3395.2,3395.1,0.29506]
[1735411107450,3.50285,3395.2,3395.1,0.29506]
[1735411107755,3.2078,3395.2,3395.1,0.29506]
[1735411110856,3.50285,3395.2,3395.1,0.29506]
[1735411111760,3.2078,3395.2,3395.1,0.29506]
[1735411112256,3.50285,3395.2,3395.1,0.29506]
[1735411113053,0.29509,3395.0,3394.9,0.29507]
[1735411113356,0.29511,3394.7,3394.6,0.2951]
[1735411114250,0.29512,3394.6,3394.5,0.29511]
[1735411119261,3.2078,3394.8,3393.6,1.2987]
[1735411119461,3.2078,3394.3,3393.4,3.2078]
[1735411119662,0.29517,3394.0,3393.9,0.29516]
[1735411120857,1.3443,3394.2,3393.5,0.73801]
[1735411121162,1.3443,3394.2,3394.0,0.29515]
[1735411121163,0.29516,3394.1,3394.0,0.29515]
[1735411123467,3.2078,3394.3,3393.8,0.73794]
[1735411123662,3.2078,3394.3,3394.2,0.29514]
[1735411123869,3.50293,3394.3,3394.2,0.29514]
[1735411126969,0.29516,3394.2,3394.1,0.29515]
[1735411127169,0.29517,3394.1,3394.0,0.29516]
[1735411127366,0.29517,3394.0,3393.9,0.29516]
[1735411127566,0.72467,3394.0,3393.9,0.29516]
[1735411128367,3.91290413,3394.2,3393.7,0.8599]
[1735411128566,3.45830413,3394.2,3394.1,0.29515]
[1735411129269,3.45830413,3394.2,3393.8,0.73794]
[1735411129270,6.66610413,3394.3,3394.2,0.29514]
[1735411130167,6.96123413,3394.3,3394.2,0.29514]
[1735411130367,3.50293,3394.3,3394.2,0.29514]
[1735411137072,3.94483,3394.3,3394.2,0.29514]
[1735411138179,7.40313413,3394.3,3394.2,0.29514]
[1735411138575,4.19533413,3394.3,3394.2,0.29514]
[1735411138976,7.40313413,3394.3,3394.2,0.29514]
[1735411144290,0.29516,3394.2,3394.1,0.29515]
[1735411144480,0.72656,3394.2,3394.1,0.29515]
[1735411146386,4.1988882,3394.2,3394.1,0.29515]
[1735411146786,3.9037282,3394.2,3394.1,0.29515]
[1735411146989,3.4723282,3394.2,3394.1,0.29515]
[1735411147687,3.50293,3394.3,3394.2,0.29514]
[1735411150994,3.2078,3394.3,3394.2,0.29514]
[1735411154387,3.50293,3394.3,3394.2,0.29514]
[1735411154789,3.2078,3394.3,3394.2,0.29514]
[1735411156094,6.6801282,3394.3,3394.2,0.29514]
[1735411157094,3.50293,3394.3,3394.2,0.29514]
[1735411157291,3.2078,3394.3,3394.2,0.29514]
[1735411157895,3.2078,3394.3,3393.9,0.73792]
[1735411157896,3.50293,3394.4,3394.3,0.29513]
[1735411159698,9.30328128,3394.4,3394.3,0.29513]
[1735411160695,9.00815128,3394.4,3394.3,0.29513]
[1735411162295,7.85016055,3394.4,3394.3,0.29513]
[1735411163702,3.2078,3394.4,3394.3,0.29513]
[1735411170691,5.80035128,3394.5,3394.4,0.29512]
[1735411172502,3.48035445,3394.9,3394.5,0.7378]
[1735411172801,3.48035445,3394.9,3394.8,0.29509]
[1735411173901,3.94425445,3395.0,3394.6,0.4619]
[1735411174094,3.94425445,3395.0,3394.9,0.29508]
[1735411176403,3.48035445,3395.0,3394.9,0.29508]
[1735411176902,7.56435445,3395.2,3395.1,0.29506]
[1735411179599,4.084,3395.2,3395.1,0.29506]
[1735411180204,0.8762,3395.2,3395.1,0.29506]
[1735411181498,3.48035445,3395.4,3395.3,0.29505]
[1735411182304,3.6328,3395.5,3395.4,0.29504]
[1735411182604,3.48035445,3395.6,3395.5,0.29503]
[1735411183906,3.90535445,3396.2,3396.1,0.29498]
[1735411185309,0.425,3396.2,3396.1,0.29498]
[1735411188506,0.425,3396.2,3395.2,3.2078]
[1735411188703,3.2078,3396.0,3395.9,0.295]
[1735411192905,3.2078,3396.1,3395.6,0.73754]
[1735411193209,3.2078,3396.1,3396.0,0.29499]
[1735411196804,0.425,3396.2,3395.7,0.73752]
[1735411197005,0.425,3396.2,3396.1,0.29498]
[1735411201015,0.425,3396.2,3395.6,3.2078]
[1735411201314,0.425,3396.2,3395.8,0.29499]
[1735411201513,0.29499,3396.0,3395.9,0.29499]
[1735411202314,0.29501,3395.9,3395.8,0.29499]
[1735411202708,3.2078,3396.1,3395.8,0.29499]
[1735411202909,3.2078,3396.1,3394.4,3.2078]
[1735411202910,11.68815445,3396.1,3394.4,3.2078]
[1735411203115,11.68815445,3396.1,3394.4,0.29513]
[1735411203116,0.29509,3394.9,3394.4,0.29513]
[1735411203409,3.2078,3394.7,3394.3,4.63518999]
[1735411203713,3.2078,3394.7,3394.6,0.29511]
[1735411204811,3.48035445,3395.0,3394.9,0.29508]
[1735411205616,3.48035445,3395.0,3394.7,0.4408]
[1735411205617,3.2078,3395.2,3394.8,3.6476]
[1735411205811,0.4576,3395.3,3395.2,0.29506]
[1735411206809,0.4624,3395.6,3395.5,0.29503]
[1735411207011,3.2078,3395.7,3395.6,0.29502]
[1735411218514,3.2078,3395.7,3395.2,0.4574]
[1735411218715,3.2078,3395.7,3395.5,0.29503]
[1735411218716,0.29503,3395.6,3395.5,0.29503]
[1735411218915,0.29503,3395.6,3395.4,0.29504]
[1735411219216,0.8565,3395.5,3395.4,0.29504]
[1735411221115,0.4335,3395.5,3395.4,0.29504]
[1735411221316,7.11412243,3395.7,3395.6,0.29502]
[1735411222419,3.646,3395.7,3395.6,0.29502]
[1735411223112,3.46812243,3395.8,3395.7,0.29501]
[1735411225216,5.07867261,3396.0,3395.5,0.4419]
[1735411225217,0.4382,3396.0,3395.9,0.29499]
[1735411227119,1.17567,3396.0,3395.4,4.63518999]
[1735411227417,0.29503,3395.5,3395.4,4.63518999]
[1735411227922,1.17883,3395.5,3395.4,3.93688999]
[1735411229021,1.17883,3395.5,3394.5,0.73778]
[1735411229022,7.42173128,3395.5,3394.5,0.73778]
[1735411229323,0.29508,3395.0,3394.9,0.29507]
[1735411230223,0.72008,3395.0,3394.9,0.29507]
[1735411231024,4.35948,3395.0,3394.9,0.29507]
[1735411232025,8.98183708,3395.0,3394.9,0.29507]
[1735411233315,4.35948,3395.0,3394.9,0.29507]
[1735411233723,4.0644,3395.0,3394.4,0.4272]
[1735411234026,4.0644,3395.0,3394.0,0.73789]
[1735411234224,0.29513,3394.4,3394.3,0.29512]
[1735411234622,0.75903,3394.4,3394.3,0.29512]
[1735411234924,0.4639,3394.4,3394.3,0.29512]
[1735411235129,0.75902,3394.4,3394.3,0.29512]
[1735411236525,0.4639,3394.4,3394.3,0.29512]
[1735411239030,0.75902,3394.4,3394.3,0.29512]
[1735411240031,0.29515,3394.2,3393.9,0.29517]
[1735411240227,0.29515,3394.2,3394.1,0.29515]
[1735411240427,0.4352,3394.3,3393.8,2.55284578]
[1735411240625,0.4352,3394.3,3393.9,0.29517]
[1735411241028,0.29516,3394.0,3393.9,0.29517]
[1735411241335,3.2078,3394.1,3393.2,6.95278499]
[1735411241530,3.2078,3393.7,3393.5,0.29519]
[1735411241829,0.29519,3393.6,3393.4,0.2952]
[1735411242020,0.29519,3393.6,3393.2,6.95278499]
[1735411242021,3.2078,3393.7,3393.6,0.29519]
[1735411248439,3.2078,3393.7,3392.3,11.59367591]
[1735411248440,4.904,3393.5,3392.3,11.59367591]
[1735411248643,3.50306,3392.8,3392.7,3.43698499]
[1735411248842,0.29528,3392.6,3392.5,8.01731033]
[1735411249152,0.29528,3392.6,3392.5,6.24850344]
[1735411250050,3.46621175,3392.7,3391.7,0.29535]
[1735411250245,0.29535,3391.8,3391.7,0.29535]
[1735411253947,3.2078,3392.1,3391.5,0.4345]
[1735411254149,0.29536,3391.7,3391.6,0.29536]
[1735411255450,0.29537,3391.6,3391.5,0.72987]
[1735411255851,0.29538,3391.4,3391.1,0.72531]
[1735411256049,0.29538,3391.4,3391.1,0.4299]
[1735411256250,0.29538,3391.4,3391.1,0.72531]
[1735411256954,0.29538,3391.4,3391.1,0.4299]
[1735411257249,0.2954,3391.2,3391.1,0.4299]
[1735411258454,3.2078,3391.5,3391.1,0.4299]
[1735411258653,0.2954,3391.2,3391.1,0.4299]
[1735411260857,3.2078,3391.5,3391.1,0.4299]
[1735411261454,0.29539,3391.4,3391.1,0.7253]
[1735411262159,0.2954,3391.3,3391.1,0.7253]
[1735411262553,0.29539,3391.4,3391.1,0.7253]
[1735411262750,0.29539,3391.3,3391.1,0.7253]
[1735411263160,3.2078,3391.5,3391.1,0.4299]
[1735411263357,0.29539,3391.4,3391.2,0.2954]
[1735411263961,3.2078,3391.5,3391.2,0.2954]
[1735411264256,0.29539,3391.3,3391.2,0.2954]
[1735411265061,0.29539,3391.3,3391.1,0.4299]
[1735411265062,3.2078,3391.5,3390.1,0.23278654]
[1735411265355,0.29544,3390.8,3390.7,0.29544]
[1735411266460,3.2078,3390.9,3390.7,0.29544]
[1735411266659,0.29544,3390.8,3390.7,0.29544]
[1735411267560,0.29544,3390.8,3390.7,0.29545]
[1735411267959,0.29546,3390.6,3390.5,0.29546]
[1735411269259,0.29546,3390.5,3390.4,0.4652]
[1735411269565,0.29546,3390.5,3390.4,0.76067]
[1735411269959,0.29546,3390.5,3390.4,0.4652]
[1735411270760,0.29276078,3390.5,3390.4,0.4652]
[1735411270965,3.2078,3390.9,3390.8,0.29544]
[1735411272566,3.50323,3390.9,3390.8,0.29544]
[1735411273455,3.2078,3390.9,3390.8,0.29544]
[1735411274862,3.50323,3390.9,3390.8,0.29544]
[1735411281170,3.2078,3390.9,3390.8,0.29544]
[1735411281370,3.50323,3390.9,3390.8,0.29544]
[1735411282275,0.7386,3390.8,3390.2,0.4412]
[1735411282471,0.29548,3390.3,3390.2,0.73668]
[1735411282675,0.29547,3390.5,3390.4,0.29546]
[1735411282876,0.29546,3390.6,3390.5,0.29545]
[1735411286274,0.29548,3390.4,3390.3,0.29547]
[1735411287172,0.73862,3390.7,3390.2,0.4412]
[1735411287374,0.29548,3390.3,3390.2,0.73669]
[1735411288972,0.73862,3390.7,3390.2,0.4412]
[1735411289174,0.29548,3390.4,3390.3,0.29547]
[1735411291868,0.29248,3390.4,3390.3,0.29547]
[1735411293375,0.29248,3390.4,3390.2,0.73669]
[1735411293376,0.29548,3390.3,3390.2,0.73669]
[1735411294878,0.29548,3390.3,3390.2,0.4412]
[1735411295084,0.29549,3390.2,3390.1,0.29549]
[1735411295377,0.2955,3390.1,3390.0,0.7227]
[1735411295878,0.2955,3390.1,3390.0,0.2955]
[1735411300779,0.2955,3390.1,3389.9,1.62371]
[1735411300780,0.29551,3390.0,3389.9,1.62371]
[1735411301288,3.50331,3390.0,3389.9,1.62371]
[1735411301584,3.50331,3390.0,3389.9,0.8628]
[1735411301983,3.50331,3390.0,3389.9,1.15831]
[1735411302682,6.96952175,3390.0,3389.9,1.15831]
[1735411304386,6.96952175,3390.0,3389.9,0.29551]
[1735411304688,3.50331,3390.0,3389.9,0.29551]
[1735411305087,3.2078,3390.0,3389.6,0.8963]
[1735411305386,0.29553,3389.8,3389.7,0.29552]
[1735411306589,3.46833303,3389.9,3389.6,0.8963]
[1735411306788,3.46833303,3389.9,3389.8,0.29552]
[1735411308292,2.31197891,3389.9,3389.6,0.8963]
[1735411308586,2.31197891,3389.9,3389.8,0.29552]
[1735411312596,3.97883144,3389.9,3389.8,0.29552]
[1735411314693,1.96236253,3389.9,3389.8,0.29552]
[1735411317797,5.43069556,3389.9,3389.8,0.29552]
[1735411319498,5.13518556,3389.9,3389.8,0.29552]
[1735411319796,5.43069556,3389.9,3389.8,0.29552]
[1735411324005,1.96236253,3389.9,3389.8,0.29552]
[1735411327801,0.29553,3389.8,3389.7,0.29553]
[1735411328300,1.66685253,3389.9,3389.6,0.8963]
[1735411328498,0.29553,3389.8,3389.7,0.29553]
[1735411328899,0.29553,3389.7,3389.6,1.19184]
[1735411330305,1.0284128,3389.7,3389.6,1.19184]
[1735411330506,0.7328828,3389.7,3389.6,1.19184]
[1735411330704,5.35523988,3389.7,3389.6,1.19184]
[1735411330906,5.65076988,3389.7,3389.6,1.19184]
[1735411332302,6.58522062,3389.7,3389.6,1.19184]
[1735411333299,1.96286354,3389.7,3389.6,1.19184]
[1735411335808,7.76321482,3389.7,3389.6,1.19184]
[1735411336000,7.76321482,3389.7,3389.6,0.74994]
[1735411337014,7.76321482,3389.7,3389.6,0.4544]
[1735411337507,7.76321482,3389.7,3389.6,0.74994]
[1735411337709,7.76321482,3389.7,3389.6,0.4544]
[1735411338214,7.76321482,3389.7,3389.6,0.74994]
[1735411339013,7.76321482,3389.7,3389.6,0.4544]
[1735411341013,0.29553,3389.7,3389.6,0.4544]
[1735411341209,1.96286354,3389.7,3389.6,0.4544]
[1735411343713,1.96286354,3389.7,3389.6,0.74994]
[1735411346517,0.29556,3389.5,3389.4,0.29554]
[1735411346722,3.50336,3389.5,3389.4,0.73614]
[1735411347416,5.17069354,3389.5,3389.4,0.4406]
[1735411347719,5.17069354,3389.5,3389.4,0.29556]
[1735411347720,3.50335,3389.5,3389.4,0.29556]
[1735411347919,3.2078,3389.5,3389.4,0.29556]
[1735411348517,3.50335,3389.5,3389.4,0.29556]
[1735411348719,3.2078,3389.5,3389.4,0.29556]
[1735411349122,8.99752896,3389.5,3389.4,0.29556]
[1735411349612,9.29307896,3389.5,3389.4,0.29556]
[1735411350014,3.50335,3389.5,3389.4,0.29556]
[1735411350918,0.29559,3389.1,3389.0,0.72919]
[1735411351220,1.96292354,3389.1,3389.0,0.72919]
[1735411351617,1.96292354,3389.1,3389.0,0.4336]
[1735411352320,1.7619821,3389.1,3389.0,0.4336]
[1735411353516,1.4663921,3389.1,3388.9,0.9094]
[1735411353723,0.29559,3389.0,3388.9,0.9094]
[1735411355919,10.46392106,3389.1,3388.6,0.439]
[1735411356222,4.23661605,3388.7,3388.6,0.73463]
[1735411356816,4.23661605,3388.7,3388.6,0.439]
[1735411357215,4.23661605,3388.7,3388.4,0.903]
[1735411357216,0.29564,3388.5,3388.4,0.903]
[1735411357417,1.02883605,3388.5,3388.4,0.903]
[1735411358022,1.7620321,3388.5,3388.4,0.4389]
[1735411358320,1.4663921,3388.5,3388.2,0.4477]
[1735411358624,4.9698521,3388.3,3388.2,0.4477]
[1735411358919,0.29569,3387.9,3387.8,4.94397228]
[1735411359223,0.29569,3387.9,3387.2,1.11053257]
[1735411359224,3.94099605,3387.9,3387.4,4.64828228]
[1735411359418,4.23672605,3387.5,3387.4,4.94401228]
[1735411360224,4.23672605,3387.5,3387.4,5.09768228]
[1735411360519,9.87706339,3387.5,3387.2,6.01201248]
[1735411360719,0.29574,3387.3,3387.2,3.85337657]
[1735411361223,0.29582,3386.4,3386.3,9.19072617]
[1735411361415,1.66926339,3386.4,3386.3,9.19072617]
[1735411361616,4.87706339,3387.0,3386.9,0.29578]
[1735411361816,3.50352,3387.5,3387.4,0.29573]
[1735411362015,4.87706339,3387.5,3386.9,0.4408]
[1735411362220,1.66926339,3387.2,3386.9,0.8722]
[1735411362415,0.29577,3387.1,3386.9,0.8722]
[1735411362630,0.29574,3387.4,3387.2,0.29575]
[1735411362822,0.29574,3387.4,3386.7,3.2078]
[1735411362823,1.66926339,3387.3,3386.7,3.50359]
[1735411363125,0.29577,3387.0,3386.8,0.8864]
[1735411363327,0.29577,3387.0,3386.9,0.29578]
[1735411363722,3.2078,3387.1,3386.9,0.29578]
[1735411363926,3.50356,3387.1,3386.9,0.29578]
[1735411364227,3.50356,3387.1,3387.0,0.29577]
[1735411364415,5.17282339,3387.1,3387.0,0.29577]
[1735411364723,5.17282339,3387.1,3386.9,0.29577]
[1735411366421,4.87706339,3387.1,3386.8,1.18218]
[1735411366627,0.29578,3386.9,3386.8,1.18218]
[1735411366823,0.29578,3386.9,3386.8,0.8864]
[1735411367026,0.29578,3386.9,3386.8,1.18219]
[1735411368229,0.29578,3386.9,3386.8,0.8864]
[1735411368529,4.87706339,3387.1,3386.8,0.8864]
[1735411368828,4.87706339,3387.1,3387.0,0.29577]
[1735411369020,2.5086,3387.1,3387.0,0.29577]
[1735411369424,1.66926339,3387.5,3386.8,0.8864]
[1735411369425,4.87706339,3387.5,3386.8,0.8864]
[1735411369624,0.29574,3387.4,3387.3,0.29574]
[1735411371125,0.29575,3387.3,3387.2,0.29575]
[1735411371427,4.87706339,3387.5,3386.9,3.2078]
[1735411371624,0.29574,3387.4,3387.3,0.29574]
[1735411371829,1.96500339,3387.4,3387.3,0.29574]
[1735411372429,0.29575,3387.3,3387.2,0.29575]
[1735411373626,0.29576,3387.2,3387.1,0.29575]
[1735411374830,1.66926339,3387.4,3386.8,0.8864]
[1735411375025,0.29578,3386.9,3386.8,0.8864]
[1735411375633,0.29578,3386.9,3386.8,1.18219]
[1735411376128,0.29578,3386.9,3386.8,0.8864]
[1735411376730,3.50358,3386.9,3386.8,0.8864]
[1735411377520,3.50358,3386.9,3386.8,1.18219]
[1735411378332,3.50358,3386.9,3386.8,0.8864]
[1735411379028,3.50358,3386.9,3386.8,1.18219]
[1735411379734,3.2078,3386.9,3386.8,1.18219]
[1735411380124,3.50358,3386.9,3386.8,1.18219]
[1735411380529,3.2078,3386.9,3386.8,1.18219]
[1735411380732,3.50358,3386.9,3386.8,1.18219]
[1735411381425,3.2078,3386.9,3386.8,1.18219]
[1735411381827,2.5085,3386.9,3386.8,1.18219]
[1735411382035,3.2078,3387.3,3386.9,0.29578]
[1735411382231,3.2078,3387.3,3387.2,0.29575]
[1735411382430,0.29573,3387.5,3387.0,3.2078]
[1735411382630,0.29573,3387.5,3387.4,0.29573]
[1735411383035,1.66926339,3387.6,3386.8,0.8864]
[1735411383335,0.29576,3387.1,3387.0,0.29576]
[1735411383535,0.29581,3386.6,3386.5,0.29581]
[1735411383739,3.2078,3387.0,3386.3,0.4521]
[1735411384034,0.29578,3386.9,3386.8,0.29578]
[1735411384337,3.2078,3387.0,3386.9,0.29578]
[1735411384530,0.29577,3387.1,3387.0,0.29576]
[1735411385430,3.2078,3387.4,3386.7,0.4403]
[1735411385630,3.2078,3387.4,3387.1,0.29575]
[1735411385631,0.29576,3387.2,3387.1,0.29575]
[1735411385830,3.2078,3387.4,3386.7,1.17978]
[1735411386037,3.50355,3387.4,3387.3,0.29574]
[1735411388537,0.29575,3387.3,3387.2,0.29574]
[1735411388934,0.29576,3387.2,3387.1,0.29576]
[1735411389532,0.29577,3387.0,3386.9,0.74788]
[1735411390133,0.29577,3387.0,3386.9,0.4521]
[1735411391235,0.29579,3386.8,3386.5,0.29581]
[1735411391441,0.29581,3386.6,3386.5,0.2958]
[1735411391740,0.29581,3386.5,3386.4,0.71782]
[1735411393834,3.50361,3386.6,3386.5,0.29581]
[1735411394242,0.29583,3386.4,3386.3,0.29583]
[1735411397139,3.50361,3386.6,3386.5,0.29581]
[1735411399043,3.2078,3386.6,3386.5,0.29581]
[1735411399244,3.5036,3386.6,3386.5,0.29581]
[1735411400539,3.2078,3386.6,3386.5,0.29581]
[1735411402247,5.51573623,3386.6,3386.5,0.29581]
[1735411402841,2.30793623,3386.6,3386.5,0.29581]
[1735411405448,2.60372623,3386.8,3386.2,5.26889]
[1735411405643,2.30793623,3386.8,3386.7,0.2958]
[1735411406147,2.60372623,3386.8,3386.7,0.2958]
[1735411406348,4.91166247,3386.8,3386.7,0.2958]
[1735411406841,4.61587247,3386.8,3386.7,0.2958]
[1735411408643,4.61587247,3386.9,3386.8,0.29579]
[1735411408843,4.61587247,3386.9,3386.8,0.75069]
[1735411409847,3.46820283,3386.9,3386.8,0.4549]
[1735411410151,3.46820283,3386.9,3386.8,0.75069]
[1735411410342,3.76398283,3386.9,3386.8,0.75069]
[1735411410747,0.29578,3386.9,3386.8,0.75069]
[1735411411848,4.91165247,3386.9,3386.8,0.75069]
[1735411414543,4.61587247,3386.9,3386.8,0.75069]
[1735411415143,4.61587247,3387.0,3386.9,0.29578]
[1735411416555,2.31266027,3387.0,3386.9,0.29578]
[1735411417454,2.60843027,3387.0,3386.9,0.29578]
[1735411418154,2.31266027,3387.0,3386.8,0.4549]
[1735411418451,0.29578,3386.9,3386.8,0.75068]
[1735411419047,0.29369326,3386.9,3386.8,0.75068]
[1735411420751,0.29369326,3386.9,3386.7,0.4344]
[1735411420752,4.61587247,3387.0,3386.6,3.5036]
[1735411420960,4.61587247,3387.0,3386.6,0.2958]
[1735411420961,0.2958,3386.7,3386.6,0.2958]
[1735411421461,0.29581,3386.5,3386.4,0.5]
[1735411421758,0.29581,3386.5,3386.4,0.79582]
[1735411423251,4.92002442,3386.5,3386.4,0.79582]
[1735411423452,4.92002442,3386.5,3386.4,0.5]
[1735411424862,0.29581,3386.5,3386.4,0.5]
[1735411425667,0.29581,3386.5,3386.4,0.79582]
[1735411426655,0.29581,3386.5,3386.4,0.5]
[1735411427759,0.29581,3386.5,3386.4,0.79582]
[1735411427957,3.50361,3386.5,3386.4,0.79582]
[1735411429763,3.50361,3386.5,3386.4,0.5]
[1735411430658,3.50361,3386.5,3386.4,0.79582]
[1735411431261,9.29333896,3386.5,3386.4,0.79582]
[1735411431452,9.29333896,3386.5,3386.4,0.5]
[1735411432155,3.50361,3386.5,3386.4,0.5]
[1735411433962,3.2078,3386.5,3386.4,0.79582]
[1735411435159,6.67359756,3386.5,3386.4,0.79582]
[1735411436164,3.2078,3386.5,3386.4,0.5]
[1735411436463,3.2078,3386.5,3386.4,0.79582]
[1735411438964,6.67348119,3386.5,3386.4,0.79582]
[1735411439170,3.46568119,3386.5,3386.4,0.79582]
[1735411439369,2.76678119,3386.5,3386.4,0.79582]
[1735411439759,2.76678119,3386.5,3386.4,4.00362]
[1735411440159,2.31087934,3386.7,3386.4,3.7078]
[1735411440362,2.31087934,3386.7,3386.6,0.2958]
[1735411441769,2.31087934,3386.9,3386.8,0.29578]
[1735411441971,2.31087934,3386.9,3386.8,1.96504339]
[1735411442174,2.31087934,3386.9,3386.8,5.17284339]
[1735411443160,2.31087934,3387.1,3387.0,0.29576]
[1735411443465,2.31087934,3387.1,3387.0,1.49276]
[1735411444373,2.31087934,3387.2,3387.0,1.197]
[1735411444670,2.31087934,3387.2,3387.1,0.29576]
[1735411444874,2.31087934,3387.2,3387.1,0.76136]
[1735411448376,2.31087934,3387.2,3387.1,2.43062339]
[1735411448774,1.61187934,3387.2,3387.1,2.43062339]
[1735411450678,0.4508,3387.9,3387.8,0.29569]
[1735411452579,0.74649,3387.9,3387.8,0.29569]
[1735411453178,5.06686341,3388.2,3387.6,0.4553]
[1735411453379,5.52936341,3388.2,3387.9,0.29568]
[1735411453572,0.29568,3388.0,3387.9,0.29568]
[1735411455074,0.9083,3388.2,3387.6,0.4553]
[1735411455272,0.29571,3387.8,3387.7,0.2957]
[1735411455473,0.29571,3387.7,3387.6,0.2957]
[1735411455876,0.29571,3387.6,3387.5,3.50351]
[1735411456077,0.74811,3387.6,3387.5,3.50351]
[1735411456969,0.4524,3387.6,3387.5,3.50351]
[1735411457681,0.8938,3387.6,3387.5,3.50351]
[1735411459683,0.8938,3387.6,3387.5,3.96851]
[1735411460277,4.62106341,3388.2,3387.5,3.6728]
[1735411460582,0.4373,3388.0,3387.9,0.29568]
[1735411465690,3.2078,3388.3,3387.7,1.66926339]
[1735411465891,3.6442,3388.3,3388.2,0.29566]
[1735411466291,3.2078,3388.3,3388.2,0.29566]
[1735411466491,3.2078,3388.3,3388.2,1.49266]
[1735411466692,0.4589,3388.6,3388.2,1.49266]
[1735411466886,0.4589,3388.6,3388.5,0.29563]
[1735411470990,0.4364,3388.8,3388.7,0.29561]
[1735411471490,0.76059,3389.0,3388.6,1.66926339]
[1735411471491,0.465,3389.0,3388.6,1.66926339]